Cogmind - Beta 13 @@@ ROGUE MODE // 2024.04.17 @ 12:12:45 Player: Nebula avali Result: Self-destructed Performance ------------- Evolutions (1) 500 Regions Visited (4) 800 Robots Destroyed (6) 30 Value Destroyed (164) 164 Prototype IDs (0) 0 Alien Tech Used (0) 0 Bonus (310) 310 TOTAL SCORE: 1804 Bonus ------- Pacifist 200 Follower Combat Kills 110 Cogmind --------- Core Integrity 240/400 Matter 300/300 Energy 170/170 System Corruption 0% Temperature Cool (0) Movement Rolling (100) Location -9/Exiles Parts ------- > --- POWER (1) -------- Makeshift Power Source > --- PROPULSION (2) --- Compact Wheel Compact Wheel > --- UTILITY (4) ------ Small Storage Unit > --- WEAPON (2) ------- Maul > --- INVENTORY (8) ---- Ion Engine Makeshift Leg Rocket Launcher Rocket Launcher Rocket Launcher Maul Peak State ------------ > --- POWER ------------ Makeshift Power Source > --- PROPULSION ------- Compact Wheel Compact Wheel > --- UTILITY ---------- Small Storage Unit > --- WEAPON ----------- Maul > --- INVENTORY -------- Ion Engine Makeshift Leg Rocket Launcher Rocket Launcher Rocket Launcher Maul [Rating: 10] Favorites ----------- Power Ion Engine Engine Ion Engine Propulsion Aluminum Leg Leg Aluminum Leg Wheel Compact Wheel Utility Small Storage Unit Storage Small Storage Unit Weapon Maul Ballistic Gun Assault Rifle Impact Weapon Maul Build | -11 -10 -9 -9 -9 ------- Run | Yrd Mat Mat Min Exi Slots Evolved 2 | . . 2 . . Power . | . . . . . Propulsion . | . . . . . Utility 2 | . . 2 . . Weapon . | . . . . . Parts Attached 4 | . 1 . 3 . Power 1 | . . . 1 . Engine 1 | . . . 1 . Core . | . . . . . Reactor . | . . . . . Propulsion 2 | . . . 2 . Treads . | . . . . . Leg . | . . . . . Wheel 2 | . . . 2 . Hover . | . . . . . Flight . | . . . . . Utility . | . . . . . Device . | . . . . . Storage . | . . . . . Processor . | . . . . . Hackware . | . . . . . Protection . | . . . . . Artifact . | . . . . . Weapon 1 | . 1 . . . Energy Gun . | . . . . . Energy Cannon . | . . . . . Ballistic Gun . | . . . . . Ballistic Cannon . | . . . . . Launcher . | . . . . . Special Weapon . | . . . . . Impact Weapon 1 | . 1 . . . Slashing Weapon . | . . . . . Piercing Weapon . | . . . . . Special Melee Weapon . | . . . . . Unidentified Prototypes . | . . . . . Parts Lost 2 | . . . 2 . Power 1 | . . . 1 . Propulsion 1 | . . . 1 . Utility . | . . . . . Weapon . | . . . . . Highest Loss Streak 2 | . . . 2 . To Critical Strikes . | . . . . . Average Slot Usage (%) 51 | . 64 55 47 55 Engine 9 | . 14 11 7 11 Leg 12 | . 28 22 8 . Wheel 7 | . . . 9 22 Storage 11 | . 14 11 11 11 Impact Weapon 10 | . 7 11 11 11 Naked Turns . | . . . . . Heaviest Build 14 | 14 13 13 13 12 Greatest Support 32 | 20 20 20 32 32 Greatest Overweight (x) 1 | . . . 1 . Average Overweight (x) . | . . . . . Largest Inventory Capacity 8 | . 8 8 8 8 Average Capacity 8 | . 8 8 8 8 Most Carried 8 | . 8 7 7 6 Average Carried 6 | . 4 7 6 6 Final Capacity 8 | 8 8 8 8 8 Final Carried 7 | 6 7 7 6 6 Class Distribution -------------------- 100% | Mutant Dominant Class ---------------- Mutant | -10/Materials Mutant | -9/Materials Mutant | -9/Mines Mutant | -9/Exiles Resources | -11 -10 -9 -9 -9 ----------- Run | Yrd Mat Mat Min Exi Matter Collected 240 | 179 . . 61 . Remotely . | . . . . . Salvage Created 218 | . . . 218 . Parts 5 | . . . 5 . Haulers Intercepted . | . . . . . Recyclers Shooed . | . . . . . Parts Field Recycled . | . . . . . Retrieved Matter . | . . . . . Parts Self-Destructed . | . . . . . Prevented . | . . . . . Kills | -11 -10 -9 -9 -9 ------- Run | Yrd Mat Mat Min Exi Combat Hostiles Destroyed 4 | . . . 4 . Melee 1 | . . . 1 . Classes Destroyed 3 | . . . 3 . Worker 2 | . . . 2 . Grunt 2 | . . . 2 . Duelist 2 | . . . 2 . Best Kill Streak 2 | . . . 2 . Combat Bots Only 2 | . . . 2 . Max Kills in Single Turn 1 | . . . 1 . Gunslinging . | . . . . . Exploded . | . . . . . Melee 1 | . . . 1 . Uniques/NPCs Destroyed . | . . . . . Combat | -11 -10 -9 -9 -9 -------- Run | Yrd Mat Mat Min Exi Hostile Shots Fired 30 | . . 3 27 . Missed 6 | . . 1 5 . Damage Taken 428 | . . 28 400 . Core 160 | . . . 160 . Absorbed by Shields . | . . . . . Core Remaining (%) 100 | 100 100 . . . Volleys Fired . | . . . . . Largest . | . . . . . Hottest . | . . . . . Shots Fired . | . . . . . Gun . | . . . . . Cannon . | . . . . . Launcher . | . . . . . Special . | . . . . . Kinetic . | . . . . . Thermal . | . . . . . Explosive . | . . . . . Electromagnetic . | . . . . . Robot Hit Streak . | . . . . . Robot Miss Streak . | . . . . . Penetration Max . | . . . . . Secondary Targets . | . . . . . Shots Hit Robots 11 | . . . 11 . Core Hits 2 | . . . 2 . Critical Kills . | . . . . . Critical Parts Destroyed 4 | . . . 4 . Critical Strikes 4 | . . . 4 . Smash 4 | . . . 4 . Melee Attacks 24 | . 1 . 23 . Impact 24 | . 1 . 23 . Slashing . | . . . . . Piercing . | . . . . . Sneak Attacks 3 | . . . 3 . Combat Hostiles 1 | . . . 1 . Follow-up Attacks . | . . . . . Damage Inflicted 493 | . . . 493 . Guns . | . . . . . Cannons . | . . . . . Explosions . | . . . . . Melee 493 | . . . 493 . Ramming . | . . . . . Kinetic . | . . . . . Thermal . | . . . . . Explosive . | . . . . . Electromagnetic . | . . . . . Impact 493 | . . . 493 . Slashing . | . . . . . Piercing . | . . . . . Highest Corruption . | . . . . . Average Corruption . | . . . . . Corruption Purged . | . . . . . Corruption Blocked . | . . . . . Overload Shots . | . . . . . Overflow Damage 177 | . . . 177 . Projectiles . | . . . . . Explosions . | . . . . . Melee 177 | . . . 177 . Knockbacks 3 | . . . 3 . Impact 3 | . . . 3 . Kinetic . | . . . . . Secondary . | . . . . . Self-Inflicted Damage . | . . . . . Shots . | . . . . . Rammed . | . . . . . Targets Rammed . | . . . . . Kicked . | . . . . . Crushed . | . . . . . Highest Temperature . | . . . . . Average Temperature . | . . . . . Received Heat Transfer 165 | . . 9 156 . Siege Activations . | . . . . . Robots Corrupted . | . . . . . Combat Hostiles . | . . . . . Parts Fried 6 | . . . 6 . Impact Corruptions 7 | . . . 7 . Robots Melted . | . . . . . Combat Hostiles . | . . . . . Parts Melted . | . . . . . Heat Transferred . | . . . . . Parts Sabotaged . | . . . . . Parts Stolen . | . . . . . Parts Stripped . | . . . . . Power Chain Reactions . | . . . . . Alert | -11 -10 -9 -9 -9 ------- Run | Yrd Mat Mat Min Exi Peak Influence 214 | . 16 36 214 . Initial 13 | . . 6 13 . Average 98 | . 10 15 135 . Maximum Alert Level 1 | . . . 1 . Low Security (%) 77 | . 100 100 66 . Level 1 22 | . . . 33 . Level 2 . | . . . . . Level 3 . | . . . . . Level 4 . | . . . . . Level 5 . | . . . . . High Security . | . . . . . Max Security . | . . . . . Squads Dispatched 4 | . 1 2 1 . Investigation 1 | . . . 1 . Extermination . | . . . . . Reinforcement 3 | . 1 2 . . Assault . | . . . . . Garrison . | . . . . . Intercept . | . . . . . Searches Triggered . | . . . . . Construction Impeded . | . . . . . Haulers Reinforced . | . . . . . Active Scanning Responses . | . . . . . Cargo Convoy Interrupts . | . . . . . Stealth | -11 -10 -9 -9 -9 --------- Run | Yrd Mat Mat Min Exi Distress Signals 1 | . . 1 . . Communications Jammed . | . . . . . Distress Signals . | . . . . . Times Spotted 11 | . 2 3 6 . Peak Tracking Total 3 | . 2 3 2 . Tactical Retreats 1 | . . . 1 . Traps | -11 -10 -9 -9 -9 ------- Run | Yrd Mat Mat Min Exi Traps Triggered . | . . . . . Indirectly . | . . . . . Trap Hack Attempts . | . . . . . Triggered . | . . . . . Disarmed . | . . . . . Reprogrammed . | . . . . . Reused . | . . . . . Traps Extracted . | . . . . . Installed . | . . . . . Triggered . | . . . . . Machines | -11 -10 -9 -9 -9 ---------- Run | Yrd Mat Mat Min Exi Machines Disabled . | . . . . . Max in Single Turn . | . . . . . Machines Repaired . | . . . . . Machines Dismantled . | . . . . . Machines Sabotaged . | . . . . . Overloaded Fab Kills . | . . . . . Hacking | -11 -10 -9 -9 -9 --------- Run | Yrd Mat Mat Min Exi Machines Accessed 1 | . . . 1 . Terminals 1 | . . . 1 . Fabricators . | . . . . . Repair Stations . | . . . . . Recycling Units . | . . . . . Scanalyzers . | . . . . . Garrison Access . | . . . . . Total Hacks 3 | . . . 3 . Successful 3 | . . . 3 . Failed . | . . . . . Catastrophic . | . . . . . Database Lockouts . | . . . . . Manual 3 | . . . 3 . Terminals 3 | . . . 3 . Fabricators . | . . . . . Repair Stations . | . . . . . Recycling Units . | . . . . . Scanalyzers . | . . . . . Garrison Access . | . . . . . Terminal Hacks 2 | . . . 2 . Level Access Points 1 | . . . 1 . Branch Access Points 1 | . . . 1 . Fabricator Hacks . | . . . . . Repair Station Hacks . | . . . . . Recycling Unit Hacks . | . . . . . Scanalyzer . | . . . . . Garrison Access Hacks . | . . . . . Unauthorized Hacks 1 | . . . 1 . Terminals 1 | . . . 1 . Detonate 1 | . . . 1 . Fabricators . | . . . . . Repair Stations . | . . . . . Recycling Units . | . . . . . Scanalyzers . | . . . . . Garrison Access . | . . . . . Data Cores Recovered . | . . . . . Used . | . . . . . Hacking Detections 1 | . . . 1 . Full Trace Events 1 | . . . 1 . Feedback Events . | . . . . . Feedback Blocked . | . . . . . Robot Schematics Acquired . | . . . . . Robots Built . | . . . . . Authchips . | . . . . . Time . | . . . . . Total Robot Build Rating . | . . . . . Part Schematics Acquired . | . . . . . Parts Built . | . . . . . Authchips . | . . . . . Time . | . . . . . Total Part Build Rating . | . . . . . Parts Repaired . | . . . . . Time . | . . . . . Parts Recycled . | . . . . . Recycled Matter . | . . . . . Retrieved Matter . | . . . . . Retrieved Components . | . . . . . Parts Scanalyzed . | . . . . . Part Schematics Acquired . | . . . . . Parts Damaged . | . . . . . Bothacking | -11 -10 -9 -9 -9 ------------ Run | Yrd Mat Mat Min Exi Used RIF Installer . | . . . . . Robots Hacked . | . . . . . Non-combat . | . . . . . Combat . | . . . . . Robot Hacks Applied . | . . . . . Relay Couplers Released . | . . . . . Fabnet Peak Effective % . | . . . . . Robots Rewired . | . . . . . Allies Hacked . | . . . . . Hacks Repelled . | . . . . . Allies | -11 -10 -9 -9 -9 -------- Run | Yrd Mat Mat Min Exi Total Allies 2 | . . . 2 . Largest Group 2 | . . . 2 . Highest-Rated Group 41 | . . . 41 . Highest-Rated Ally 31 | . . . 31 . Total Orders . | . . . . . Ally Attacks 25 | . . . 25 . Total Damage 310 | . . . 310 . Kills 4 | . . . 4 . Allies Corrupted . | . . . . . Allies Melted . | . . . . . Intel | -11 -10 -9 -9 -9 ------- Run | Yrd Mat Mat Min Exi Robot Analysis Total . | . . . . . Derelict Logs Recovered 1 | . . . 1 . Drone Launches . | . . . . . Drone Recoveries . | . . . . . Exploration | -11 -10 -9 -9 -9 ------------- Run | Yrd Mat Mat Min Exi Turns Passed 593 | . 96 81 399 17 Spaces Moved 410 | 1 71 68 253 17 Core . | . . . . . Treads . | . . . . . Legs 250 | 1 71 68 110 . Wheels 160 | . . . 143 17 Hover . | . . . . . Flight . | . . . . . Fastest Speed 100 | 120 120 120 100 100 Average Speed 122 | 120 120 120 124 100 Slowest Speed 190 | 120 120 120 190 100 Overloaded Moves . | . . . . . Propulsion Burnouts . | . . . . . Robots Hopped . | . . . . . Cave-ins Triggered . | . . . . . Exploration Rate (%) 19 | 2 16 13 56 8 Regions Visited 4 Branch Regions 2 Pre-discovered Areas . | . . . . . Known Exits Taken . | . . . . . Unknown Exits Taken 4 | 1 1 1 1 . Scrap Searched 1 | . . . 1 . Spaces Dug 8 | . 1 . 7 . Terrain Destroyed 8 | . 1 . 7 . Melee 8 | . 1 . 7 . Projectile . | . . . . . AOE . | . . . . . Terrain Rammed . | . . . . . Walls Destroyed . | . . . . . Machines Disabled . | . . . . . Actions | -11 -10 -9 -9 -9 --------- Run | Yrd Mat Mat Min Exi Total 456 | . 83 67 289 17 Wait 10 | . . . 10 . Move 406 | . 70 67 252 17 Hop . | . . . . . Pick Up 5 | . 4 . 1 . Fast Attach 2 | . 1 . 1 . Attach 2 | . . . 2 . Detach 2 | . 2 . . . Swap . | . . . . . Drop 5 | . 5 . . . Fire . | . . . . . Melee 24 | . 1 . 23 . Ram . | . . . . . Kick . | . . . . . Crush . | . . . . . Escape Stasis . | . . . . . Rewire . | . . . . . Trap . | . . . . . Miscellaneous . | . . . . . Route ------- -11/Scrapyard -10/Materials -9/Materials -9/Mines (discovered 3 exits: *Mat x2 / [*Exi]) -9/Exiles (discovered 1 exit: [*Min]) History --------- Turn | Location | Event 1 | -11/Scrapyard | Discovered new exit (range 0) 1 | -11/Scrapyard | Entered Materials 95 | -10/Materials | Discovered new exit (range 3) 97 | -10/Materials | Entered another Materials area 97 | -9/Materials | Evolved 2 slots: Utility x2 160 | -9/Materials | Discovered new exit (range 16) 178 | -9/Materials | Entered Mines 289 | -9/Mines | Identified exit to Materials 311 | -9/Mines | Build established: Mutant 456 | -9/Mines | Assembled infested the area 549 | -9/Mines | Learned Materials stockpile data 573 | -9/Mines | Deemed a non-threat by the Exiles lab entrance 573 | -9/Mines | Discovered new exit (range 5) 577 | -9/Mines | Entered Exiles 590 | -9/Exiles | Discovered new exit (range 15) 594 | -9/Exiles | Self-destructed Last Messages --------------- 00499_ Sneak attack on L-31 Rogue. 00499_ L-31 Rogue suffers critical hit (Smash). 00499_ Destroyed Imp. Ion Engine. 00499_ L-31 Rogue system corrupted by crushing effect. 00499_ L-31 Rogue knocked back. 00500_ L-31 Rogue system terminally corrupted. 00500_ Melee Analysis Suite fried. 00506_ K-01 Serf collects debris. 00514_ Acquired Mak. Power Source. 00516_ K-01 Serf collects debris. 00517_ Acquired Mak. Leg. 00518_ Acquired 10 matter. 00519_ K-01 Serf collects debris. 00549_ Acquired derelict log, extracted data. Data stored: Materials stockpile data. 00573_ "No threat detected, you may enter." 00573_ EXIT=FOUND LOCATION=UNKNOWN GOAL=ESCAPE 00590_ EXIT=FOUND Map ----- +----------------------------------------------------+ | ?????????????????????????????????????????????????? | | ?????????????????????????????????????????????????? | | ?????????????????????????????????????????????????? | | ?????????????????????????????????????????????????? | | ?????????????????????????????????????????????????? | | ?????????????????????????????????????????????????? | | ?????????????????????????????????????????????????? | | ?????????????????????????????????????????????????? | | ?????????????????????????????????????????????????? | | ?????????????????????????????????????????????????? | | ?????????????????????????????????????????????????? | | ?????????????????????????????????????????????????? | | ?????????????????????????????????????????????????? | | ??????????????????????????????? #??????????????? | | ?????????????????????????????? < #??????????????? | | ?????????????????????????????? #??????????????? | | ?????????????????????????????? ???????????????? | | ?????????????????????????????# #???????????????? | | ???????????????????????????## ##??????????????? | | ???????????????????????????# #??????????????? | | ???????????????????????????# #??????????????? | | ??????????????????????????## ???????????????? | | ?????????????????????????## #????????????????? | | ?????????????????????????# #????????????????? | | ???????????????????????### #?????????????????? | | ?????????????????????### @ #?????????????????? | | ???????????????#""""## ##?????????????????? | | ???????????? * ##?????????????????? | | ??????????? * #?????????????????? | | ???????????? ##????????????????? | | ????????????"""#### ###??????????????? | | ??????????????????#### * ###????????????? | | ?????????????????????##### ##???????????? | | ?????????????????????????### #???????????? | | ???????????????????????????### #???????????? | | ?????????????????????????????### #???????????? | | ??????????????????????????????#" ##??????????? | | ??????????????????????????????#### ###????????? | | ?????????????????????????????????# ##???????? | | ?????????????????????????????????## ###?????? | | ??????????????????????????????????### #?????? | | ????????????????????????????????????# ##?????? | | ????????????????????????????????????## ##??????? | | ?????????????????????????????????????#####???????? | | ?????????????????????????????????????????????????? | | ?????????????????????????????????????????????????? | | ?????????????????????????????????????????????????? | | ?????????????????????????????????????????????????? | | ?????????????????????????????????????????????????? | | ?????????????????????????????????????????????????? | +----------------------------------------------------+ Best States ------------- Heat Dissipation 28 Energy Generation 15 Energy Capacity 250 Matter Stores 300 Matter Capacity 300 Sight Range 16 Terrain Scan Density 10 Evasion (%) 55 Item Schematics ----------------- None Robot Schematics ------------------ None Fabricated ------------ Nothing Alien Tech Used ----------------- None Achievements -------------- None Challenges ------------ None Game ------ Seed frogmind Manual? 1 Play Time 00:04:10 Cumulative 42.1 hours Start 2024.04.17 @ 12:08:41 End 2024.04.17 @ 12:12:45 Sessions 1 Manual Loads 0 Difficulty Rogue Special Mode None Game No. 72 Rogue 71 Adventurer 1 Explorer 0 Win Type - Total 2 Types 2/0/0/0/0/0/0/0/0 Lore% 26 Gallery% 47 Achievement% 39 Wizard Run 0 Options --------- Layout 0 ASCII 0 Keyboard 0 Movement Numpad Keybinds 0 Fullscreen 1 Font 18/SmallcapsGlow Map View 76x50 Zoom Use 0% Tactical HUD 1 Map Filters NONE Filters NONE Steam 1 RUN: a70ff5a1-6a48-41e2-bf48-a9836bd969af